fUST/lending_fUST_20251208
["ID","MTS","AMOUNT","RATE_DAILY","PERIOD"]
[397159367,1765153849238,-500.0,0.00010442,2]
[397159369,1765153849247,-1601.04,0.00010442,2]
[397159371,1765153849256,-10595.96,0.00010442,2]
[397159373,1765153849265,-661.99,0.00010442,2]
[397159374,1765153849274,-1725.78,0.00010442,2]
[397159376,1765153849283,-500.49603687,0.00010443,2]
[397159379,1765153849293,-885.95,0.00010443,2]
[397159381,1765153849303,-500.0,0.00010443,2]
[397159382,1765153849313,-2299.79,0.00010443,2]
[397159385,1765153849323,-2254.91,0.00010443,2]
[397159386,1765153849332,-654.36,0.00010443,2]
[397159388,1765153849341,-2177.96,0.00010443,2]
[397159390,1765153849351,-1887.02,0.00010443,2]
[397159393,1765153849361,-974.95,0.00010443,2]
[397159394,1765153849370,-808.23,0.00010443,2]
[397159397,1765153849380,-8630.89,0.00010443,2]
[397159399,1765153849389,-678.7,0.00010443,2]
[397159401,1765153849399,-1393.08,0.00010443,2]
[397159402,1765153849408,-1429.0,0.00010443,2]
[397159404,1765153849417,-786.94,0.00010443,2]
[397159406,1765153849426,-946.28,0.00010443,2]
[397159408,1765153849435,-3077.87,0.00010443,2]
[397159410,1765153849445,-5051.04,0.00010443,2]
[397159412,1765153849454,-2887.96,0.00010443,2]
[397159414,1765153849463,-722.55,0.00010443,2]
[397159416,1765153849472,-500.0,0.00010443,2]
[397159418,1765153849481,-1790.75,0.00010443,2]
[397159420,1765153849491,-500.0,0.00010443,2]
[397159422,1765153849500,-500.0,0.00010443,2]
[397159424,1765153849509,-1270.51,0.00010443,2]
[397159426,1765153849518,-1485.81,0.00010443,2]
[397159429,1765153849527,-2424.75,0.00010443,2]
[397159431,1765153849537,-500.0,0.00010443,2]
[397159432,1765153849546,-2080.23,0.00010443,2]
[397159434,1765153849555,-1342.63,0.00010443,2]
[397159437,1765153849564,-950.97,0.00010443,2]
[397159438,1765153849574,-500.0,0.00010443,2]
[397159440,1765153849583,-2675.22,0.00010443,2]
[397159442,1765153849591,-500.0,0.00010443,2]
[397159444,1765153849600,-172.46721804,0.00010451,2]
[397159446,1765153849609,-151.98929535,0.00010469,2]
[397159448,1765153849619,-701.93,0.00010504,2]
[397159450,1765153849628,-500.0,0.00010504,2]
[397159452,1765153849637,-500.0,0.00010504,2]
[397159454,1765153849646,-500.0,0.00010504,2]
[397159456,1765153849656,-500.0,0.00010504,2]
[397159458,1765153849665,-500.0,0.00010504,2]
[397159460,1765153849674,-500.0,0.00010504,2]
[397159462,1765153849683,-500.20753575,0.00010504,2]
[397159464,1765153849693,-652.57,0.00010504,2]
[397159466,1765153849702,-1733.82,0.00010504,2]
[397159468,1765153849711,-500.0,0.00010504,2]
[397159470,1765153849720,-499.59623065,0.00010504,2]
[397159472,1765153849730,-501.10930966,0.00010504,2]
[397159474,1765153849739,-500.0,0.00010504,2]
[397159476,1765153849748,-726.34,0.00010504,2]
[397159478,1765153849757,-500.0,0.00010504,2]
[397159480,1765153849767,-500.91536818,0.00010504,2]
[397159482,1765153849776,-500.0,0.00010504,2]
[397159484,1765153849785,-744.6,0.00010504,2]
[397159486,1765153849794,-500.0,0.00010504,2]
[397159488,1765153849803,-501.12994435,0.00010504,2]
[397159490,1765153849812,-655.75,0.00010504,2]
[397159492,1765153849821,-771.57,0.00010504,2]
[397159494,1765153849830,-500.0,0.00010504,2]
[397159496,1765153849839,-684.47,0.00010504,2]
[397159498,1765153849848,-748.63,0.00010504,2]
[397159500,1765153849857,-500.0,0.00010504,2]
[397159502,1765153849867,-500.0,0.00010504,2]
[397159504,1765153849876,-500.0,0.00010504,2]
[397159506,1765153849886,-500.0,0.00010504,2]
[397159508,1765153849896,-500.0,0.00010504,2]
[397159510,1765153849905,-2834.23,0.00010504,2]
[397159512,1765153849914,-500.0,0.00010504,2]
[397159514,1765153849925,-506.0,0.00010504,2]
[397159516,1765153849935,-500.0,0.00010504,2]
[397159518,1765153849944,-1813.48,0.00010504,2]
[397159520,1765153849953,-735.15,0.00010504,2]
[397159522,1765153849962,-501.00515146,0.00010504,2]
[397159524,1765153849972,-500.0,0.00010504,2]
[397159526,1765153849980,-500.0,0.00010504,2]
[397159528,1765153849990,-546.45,0.00010504,2]
[397159530,1765153849999,-1230.04,0.00010504,2]
[397159532,1765153850008,-500.0,0.00010504,2]
[397159534,1765153850017,-1263.45,0.00010504,2]
[397159536,1765153850026,-1422.99,0.00010504,2]
[397159538,1765153850035,-651.12,0.00010504,2]
[397159540,1765153850044,-500.0,0.00010504,2]
[397159542,1765153850053,-1203.71,0.00010504,2]
[397159544,1765153850062,-500.0,0.00010504,2]
[397159546,1765153850072,-500.0,0.00010504,2]
[397159548,1765153850082,-1325.07,0.00010504,2]
[397159551,1765153850092,-1564.2,0.00010504,2]
[397159552,1765153850102,-500.0,0.00010504,2]
[397159555,1765153850111,-500.0,0.00010504,2]
[397159556,1765153850122,-1631.85,0.00010504,2]
[397159559,1765153850133,-500.0,0.00010504,2]
[397159561,1765153850142,-2670.11,0.00010504,2]
[397159562,1765153850151,-564.14,0.00010504,2]
[397159564,1765153850160,-2211.25,0.00010504,2]
[397159566,1765153850170,-979.13,0.00010504,2]
[397159568,1765153850180,-508.862522,0.00010504,2]
[397159570,1765153850189,-500.0,0.00010504,2]
[397159573,1765153850201,-2381.75,0.00010504,2]
[397159574,1765153850210,-886.02,0.00010504,2]
[397159577,1765153850220,-394.76639168,0.00010504,2]
[397159579,1765153850230,-3968.89,0.00010504,2]
[397159580,1765153850239,-630.05,0.00010504,2]
[397159582,1765153850248,-609.31,0.00010504,2]
[397159584,1765153850257,-637.93,0.00010504,2]
[397159587,1765153850267,-3624.79,0.00010504,2]
[397159588,1765153850276,-500.0,0.00010504,2]
[397159591,1765153850286,-2236.9,0.00010504,2]
[397159593,1765153850295,-916.03,0.00010504,2]
[397159595,1765153850305,-500.0,0.00010504,2]
[397159597,1765153850316,-500.0,0.00010504,2]
[397159599,1765153850325,-500.0,0.00010504,2]
[397159600,1765153850334,-500.0,0.00010504,2]
[397159602,1765153850343,-500.0,0.00010504,2]
[397159604,1765153850352,-500.0,0.00010504,2]
[397159606,1765153850361,-912.38,0.00010504,2]
[397159608,1765153850371,-500.6873662,0.00010504,2]
[397159610,1765153850380,-1864.22,0.00010504,2]
[397159612,1765153850390,-1335.69,0.00010504,2]
[397159615,1765153850399,-500.0,0.00010504,2]
[397159616,1765153850408,-1021.74,0.00010504,2]
[397159618,1765153850418,-285.28847727,0.00010504,2]
[397159620,1765153850427,-501.80229059,0.00010504,2]
[397159623,1765153850437,-8172.28,0.00010504,2]
[397159625,1765153850446,-500.0,0.00010504,2]
[397159627,1765153850455,-500.0,0.00010504,2]
[397159628,1765153850464,-1999.6,0.00010504,2]
[397159631,1765153850474,-958.09,0.00010504,2]
[397159632,1765153850483,-500.0,0.00010504,2]
[397159634,1765153850491,-808.38,0.00010504,2]
[397159637,1765153850501,-500.0,0.00010504,2]
[397159639,1765153850511,-1557.97,0.00010504,2]
[397159641,1765153850521,-2249.82,0.00010504,2]
[397159642,1765153850531,-500.46578494,0.00010504,2]
[397159645,1765153850540,-703.19,0.00010504,2]
[397159646,1765153850549,-4417.32,0.00010504,2]
[397159648,1765153850559,-500.0,0.00010504,2]
[397159650,1765153850568,-500.0,0.00010504,2]
[397159652,1765153850578,-685.84,0.00010504,2]
[397159655,1765153850587,-500.0,0.00010504,2]
[397159657,1765153850596,-1535.4,0.00010504,2]
[397159658,1765153850605,-500.0,0.00010504,2]
[397159660,1765153850615,-500.0,0.00010504,2]
[397159662,1765153850624,-500.0,0.00010504,2]
[397159664,1765153850634,-1598.25,0.00010504,2]
[397159666,1765153850643,-500.0,0.00010504,2]
[397159669,1765153850653,-500.0,0.00010504,2]
[397159671,1765153850663,-500.0,0.00010504,2]
[397159672,1765153850672,-1846.53,0.00010504,2]
[397159675,1765153850681,-656.39,0.00010504,2]
[397159677,1765153850691,-500.0,0.00010504,2]
[397159679,1765153850700,-18068.84,0.00010504,2]
[397159681,1765153850709,-1166.43,0.00010504,2]
[397159683,1765153850719,-741.01,0.00010504,2]
[397159685,1765153850729,-500.0,0.00010504,2]
[397159686,1765153850739,-500.0,0.00010504,2]
[397159689,1765153850749,-5101.78,0.00010504,2]
[397159691,1765153850758,-2157.21,0.00010504,2]
[397159693,1765153850767,-5148.16,0.00010504,2]
[397159694,1765153850776,-1750.38,0.00010504,2]
[397159696,1765153850786,-2858.89,0.00010504,2]
[397159699,1765153850795,-1495.21,0.00010504,2]
[397159701,1765153850805,-616.60296169,0.00010504,2]
[397159703,1765153850815,-701.75,0.00010504,2]
[397159704,1765153850824,-500.0,0.00010504,2]
[397159706,1765153850833,-500.0,0.00010504,2]
[397159708,1765153850842,-8280.08,0.00010504,2]
[397159710,1765153850851,-500.8241745,0.00010504,2]
[397159712,1765153850860,-500.0,0.00010506,2]
[397159714,1765153850870,-500.0,0.00010506,2]
[397159716,1765153850880,-500.0,0.00010506,2]
[397159718,1765153850889,-500.0,0.00010506,2]
[397159720,1765153850898,-500.0,0.00010506,2]
[397159722,1765153850907,-278.77998031,0.00010506,2]
[397159724,1765153850917,-500.0,0.00010506,2]
[397159726,1765153850925,-500.0,0.00010506,2]
[397159728,1765153850934,-759.2,0.00010506,2]
[397159730,1765153850943,-500.0,0.00010506,2]
[397159732,1765153850953,-826.76,0.00010506,2]
[397159734,1765153850962,-500.0,0.00010506,2]
[397159736,1765153850972,-500.48822488,0.00010506,2]
[397159738,1765153850982,-500.0,0.00010506,2]
[397159740,1765153850991,-500.0,0.00010506,2]
[397159742,1765153850999,-1036.48,0.00010506,2]
[397159744,1765153851008,-500.0,0.00010506,2]
[397159746,1765153851018,-500.0,0.00010506,2]
[397159748,1765153851027,-500.0,0.00010506,2]
[397159750,1765153851038,-500.0,0.00010506,2]
[397159752,1765153851047,-500.0,0.00010506,2]
[397159754,1765153851055,-500.29696561,0.00010506,2]
[397159756,1765153851064,-500.53855688,0.00010506,2]
[397159758,1765153851074,-500.0,0.00010506,2]
[397159760,1765153851084,-500.0,0.00010506,2]
[397159762,1765153851092,-500.0,0.00010506,2]
[397159764,1765153851101,-500.0,0.00010506,2]
[397159766,1765153851110,-500.0,0.00010506,2]
[397159768,1765153851121,-161.84681577,0.00010506,2]
[397159770,1765153851132,-500.50824751,0.00010506,2]
[397159772,1765153851141,-500.0,0.00010506,2]
[397159774,1765153851151,-500.0,0.00010506,2]
[397159776,1765153851160,-500.0,0.00010506,2]
[397159778,1765153851170,-500.0,0.00010506,2]
[397159780,1765153851179,-1260.24,0.00010506,2]
[397159782,1765153851189,-501.23398174,0.00010506,2]
[397159784,1765153851199,-500.0,0.00010506,2]
[397159786,1765153851210,-500.0,0.00010506,2]
[397159788,1765153851219,-516.02,0.00010506,2]
[397159790,1765153851228,-500.54297964,0.00010506,2]
[397159792,1765153851237,-500.0,0.00010506,2]
[397159794,1765153851247,-500.0,0.00010506,2]
[397159796,1765153851256,-500.0,0.00010506,2]
[397159798,1765153851265,-500.0,0.00010506,2]
[397159800,1765153851274,-571.37,0.00010506,2]
[397159802,1765153851283,-500.0,0.00010506,2]
[397159804,1765153851292,-500.0,0.00010506,2]
[397159806,1765153851302,-500.6319764,0.00010506,2]
[397159808,1765153851311,-500.0,0.00010506,2]
[397159810,1765153851320,-500.0,0.00010506,2]
[397159812,1765153851329,-500.0,0.00010506,2]
[397159814,1765153851338,-534.05,0.00010506,2]
[397159816,1765153851348,-500.0,0.00010506,2]
[397159818,1765153851358,-500.0,0.00010506,2]
[397159820,1765153851367,-659.52,0.00010506,2]
[397159822,1765153851375,-500.37277024,0.00010506,2]
[397159824,1765153851385,-500.0,0.00010506,2]
[397159826,1765153851394,-990.92,0.00010506,2]
[397159827,1765153851403,-532.12,0.00010506,2]
[397159830,1765153851413,-501.13472477,0.00010506,2]
[397159832,1765153851422,-500.45841272,0.00010506,2]
[397159834,1765153851431,-530.45,0.00010506,2]
[397159836,1765153851440,-500.0,0.00010506,2]
[397159838,1765153851450,-500.0,0.00010506,2]
[397159840,1765153851460,-500.0,0.00010506,2]
[397159842,1765153851470,-690.97,0.00010506,2]
[397159844,1765153851479,-500.66838742,0.00010506,2]
[397159846,1765153851489,-500.0,0.00010506,2]
[397159848,1765153851498,-500.0,0.00010506,2]
[397159850,1765153851507,-555.02,0.00010506,2]
[397159852,1765153851516,-500.0,0.00010506,2]
[397159853,1765153851525,-500.74337367,0.00010506,2]
[397159856,1765153851535,-501.29033876,0.00010506,2]
[397159858,1765153851543,-605.09488377,0.00010506,2]
[397159860,1765153851553,-500.57535494,0.00010506,2]
[397159861,1765153851563,-500.0,0.00010506,2]
[397159864,1765153851573,-500.0,0.00010506,2]
[397159865,1765153851582,-500.0,0.00010506,2]
[397159868,1765153851593,-500.0,0.00010506,2]
[397159869,1765153851603,-500.88927097,0.00010506,2]
[397159872,1765153851613,-500.0,0.00010506,2]
[397159873,1765153851622,-500.0,0.00010506,2]
[397159875,1765153851632,-504.00139796,0.00010506,2]
[397159877,1765153851642,-496.9465404,0.00010506,2]
[397159879,1765153851651,-500.85192493,0.00010506,2]
[397159881,1765153851660,-501.35302414,0.00010506,2]
[397159883,1765153851669,-500.27146252,0.00010506,2]
[397159886,1765153851679,-1625.29,0.00010506,2]
[397159887,1765153851688,-500.0,0.00010506,2]
[397159890,1765153851699,-500.0,0.00010506,2]
[397159892,1765153851708,-500.0,0.00010506,2]
[397159894,1765153851717,-500.0,0.00010506,2]
[397159896,1765153851726,-500.37368379,0.00010506,2]
[397159898,1765153851735,-677.6,0.00010506,2]
[397159900,1765153851745,-500.0,0.00010506,2]
[397159902,1765153851754,-878.47,0.00010506,2]
[397159904,1765153851764,-500.0,0.00010506,2]
[397159906,1765153851774,-500.0,0.00010506,2]
[397159908,1765153851783,-500.0,0.00010506,2]
[397159910,1765153851792,-272.86733757,0.00010506,2]
[397159912,1765153851801,-500.0,0.00010506,2]
[397159913,1765153851810,-500.0,0.00010506,2]
[397159915,1765153851819,-500.0,0.00010506,2]
[397159917,1765153851828,-500.0,0.00010506,2]
[397159919,1765153851837,-500.0,0.00010506,2]
[397159921,1765153851847,-500.0,0.00010506,2]
[397159923,1765153851856,-500.0,0.00010506,2]
[397159925,1765153851864,-500.0,0.00010506,2]
[397159927,1765153851874,-1161.87,0.00010506,2]
[397159929,1765153851883,-500.0,0.00010506,2]
[397159931,1765153851892,-500.0,0.00010506,2]
[397159933,1765153851900,-500.0,0.00010506,2]
[397159935,1765153851910,-732.6,0.00010506,2]
[397159937,1765153851918,-500.0,0.00010506,2]
[397159939,1765153851927,-500.0,0.00010506,2]
[397159941,1765153851936,-501.1180566,0.00010506,2]
[397159943,1765153851946,-500.0,0.00010506,2]
[397159945,1765153851956,-500.0,0.00010506,2]
[397159947,1765153851965,-500.0,0.00010506,2]
[397159949,1765153851974,-501.80599434,0.00010506,2]
[397159951,1765153851983,-500.77873345,0.00010506,2]
[397159953,1765153851993,-500.0,0.00010506,2]
[397159955,1765153852002,-500.33392414,0.00010506,2]
[397159957,1765153852011,-500.34886408,0.00010506,2]
[397159959,1765153852020,-500.0,0.00010506,2]
[397159961,1765153852029,-700.92,0.00010506,2]
[397159963,1765153852038,-500.46619373,0.00010506,2]
[397159965,1765153852047,-732.82,0.00010506,2]
[397159966,1765153852056,-751.68,0.00010506,2]
[397159968,1765153852065,-181.40614196,0.00010506,2]
[397159970,1765153852074,-500.0,0.00010506,2]
[397159972,1765153852083,-500.0,0.00010506,2]
[397159974,1765153852092,-500.0,0.00010506,2]
[397159976,1765153852101,-500.0,0.00010506,2]
[397159978,1765153852110,-500.0,0.00010506,2]
[397159980,1765153852119,-500.0,0.00010506,2]
[397159982,1765153852128,-500.0,0.00010506,2]
[397159984,1765153852142,-500.0,0.00010506,2]
[397159986,1765153852151,-500.0,0.00010506,2]
[397159988,1765153852160,-500.0,0.00010506,2]
[397159990,1765153852169,-500.0,0.00010506,2]
[397159992,1765153852180,-500.0,0.00010506,2]
[397159993,1765153852190,-1482.46,0.00010506,2]
[397159996,1765153852200,-500.0,0.00010506,2]
[397159997,1765153852209,-500.0,0.00010506,2]
[397159999,1765153852219,-500.0,0.00010506,2]
[397160001,1765153852227,-500.0,0.00010506,2]
[397160004,1765153852238,-500.0,0.00010506,2]
[397160005,1765153852247,-500.0,0.00010506,2]
[397160007,1765153852258,-500.88928762,0.00010506,2]
[397160027,1765153852435,-500.0,0.00010506,2]
[397160029,1765153852445,-500.0,0.00010506,2]
[397160031,1765153852454,-500.0,0.00010506,2]
[397160033,1765153852464,-500.0,0.00010506,2]
[397160035,1765153852473,-1481.12,0.00010506,2]
[397160037,1765153852482,-500.7951068,0.00010506,2]
[397160039,1765153852492,-500.72157775,0.00010506,2]
[397160041,1765153852501,-500.0,0.00010506,2]
[397160043,1765153852511,-500.37575561,0.00010506,2]
[397160045,1765153852520,-500.0,0.00010506,2]
[397160047,1765153852529,-738.58,0.00010506,2]
[397160049,1765153852539,-500.0,0.00010506,2]
[397160051,1765153852548,-659.13,0.00010506,2]
[397160053,1765153852558,-500.0,0.00010506,2]
[397160055,1765153852567,-500.31979545,0.00010506,2]
[397160057,1765153852576,-635.57187437,0.00010506,2]
[397160059,1765153852586,-500.0,0.00010506,2]
[397160061,1765153852595,-500.0,0.00010506,2]
[397160063,1765153852605,-500.0,0.00010506,2]
[397160064,1765153852615,-500.0,0.00010506,2]
[397160066,1765153852624,-500.0,0.00010506,2]
[397160068,1765153852634,-500.0,0.00010506,2]
[397160070,1765153852644,-500.0,0.00010506,2]
[397160072,1765153852654,-500.0,0.00010506,2]
[397160074,1765153852663,-1205.55,0.00010506,2]
[397160076,1765153852673,-500.86,0.00010506,2]
[397160078,1765153852683,-500.0,0.00010506,2]
[397160080,1765153852693,-1819.74,0.00010506,2]
[397160082,1765153852702,-500.0,0.00010506,2]
[397160084,1765153852712,-500.0,0.00010506,2]
[397160086,1765153852721,-500.0,0.00010506,2]
[397160088,1765153852730,-500.0,0.00010506,2]
[397160090,1765153852739,-744.46,0.00010506,2]
[397160092,1765153852748,-2654.04,0.00010506,2]
[397160093,1765153852759,-500.0,0.00010506,2]
[397160095,1765153852768,-303.40388645,0.00010506,2]
[397160097,1765153852777,-500.0,0.00010506,2]
[397160099,1765153852787,-813.18,0.00010506,2]
[397160101,1765153852796,-500.54993539,0.00010506,2]
[397160103,1765153852806,-1896.42,0.00010506,2]
[397160105,1765153852816,-1133.57,0.00010506,2]
[397160107,1765153852825,-500.0,0.00010506,2]
[397160109,1765153852834,-500.0,0.00010506,2]
[397160111,1765153852843,-893.16,0.00010506,2]
[397160113,1765153852853,-500.0,0.00010506,2]
[397160115,1765153852862,-500.0,0.00010506,2]
[397160117,1765153852872,-848.05,0.00010506,2]
[397160119,1765153852881,-1517.48,0.00010506,2]
[397160121,1765153852891,-500.0,0.00010506,2]
[397160123,1765153852900,-675.57,0.00010506,2]
[397160125,1765153852909,-3377.49,0.00010506,2]
[397160127,1765153852918,-13062.21,0.00010506,2]
[397160129,1765153852927,-500.76845567,0.00010506,2]
[397160131,1765153852937,-794.44,0.00010506,2]
[397160133,1765153852946,-3456.82,0.00010506,2]
[397160135,1765153852955,-500.0,0.00010506,2]
[397160136,1765153852965,-803.78,0.00010506,2]
[397160138,1765153852974,-568.42840949,0.00010506,2]
[397160141,1765153852985,-500.0,0.00010506,2]
[397160142,1765153852995,-500.0,0.00010506,2]
[397160144,1765153853004,-500.0,0.00010506,2]
[397160146,1765153853013,-26684.44,0.00010506,2]
[397160148,1765153853023,-500.0,0.00010506,2]
[397160150,1765153853033,-553.4,0.00010506,2]
[397160152,1765153853042,-645.97,0.00010506,2]
[397160154,1765153853052,-500.0,0.00010506,2]
[397160156,1765153853061,-1065.68,0.00010506,2]
[397160158,1765153853070,-500.0,0.00010506,2]
[397160160,1765153853079,-500.0,0.00010506,2]
[397160162,1765153853088,-500.0,0.00010506,2]
[397160164,1765153853097,-3772.79,0.00010506,2]
[397160166,1765153853107,-500.0,0.00010506,2]
[397160168,1765153853117,-790.17,0.00010506,2]
[397160170,1765153853127,-1642.19,0.00010506,2]
[397160172,1765153853140,-2889.23,0.00010506,2]
[397160174,1765153853150,-500.28986904,0.00010506,2]
[397160176,1765153853159,-5268.6,0.00010506,2]
[397160178,1765153853169,-481.65930224,0.00010506,2]
[397160180,1765153853179,-731.31,0.00010506,2]
[397160182,1765153853188,-500.39961624,0.00010506,2]
[397160184,1765153853197,-500.96243508,0.00010506,2]
[397160186,1765153853207,-859.46,0.00010506,2]
[397160188,1765153853219,-2286.59882491,0.00010506,2]
[397160190,1765153853228,-500.0,0.00010506,2]
[397160192,1765153853237,-500.0,0.00010506,2]
[397160194,1765153853246,-500.0,0.00010506,2]
[397160196,1765153853255,-731.48,0.00010506,2]
[397160198,1765153853265,-500.0,0.00010506,2]
[397160199,1765153853274,-500.0,0.00010506,2]
[397160201,1765153853284,-500.0,0.00010506,2]
[397160204,1765153853294,-500.0,0.00010506,2]
[397160205,1765153853303,-500.0,0.00010506,2]
[397160207,1765153853313,-500.5614809,0.00010506,2]
[397160209,1765153853322,-500.0,0.00010506,2]
[397160211,1765153853331,-500.0,0.00010506,2]
[397160213,1765153853341,-500.0,0.00010506,2]
[397160215,1765153853350,-500.0,0.00010506,2]
[397160217,1765153853359,-311.33999066,0.00010506,2]
[397160219,1765153853370,-500.0,0.00010506,2]
[397160221,1765153853379,-500.0,0.00010506,2]
[397160223,1765153853389,-500.61158864,0.00010506,2]
[397160225,1765153853398,-500.0,0.00010506,2]
[397160227,1765153853407,-500.0,0.00010506,2]
[397160229,1765153853416,-604.09501238,0.00010506,2]
[397160231,1765153853425,-500.27188998,0.00010506,2]
[397160233,1765153853435,-500.0,0.00010506,2]
[397160235,1765153853444,-500.0,0.00010506,2]
[397160237,1765153853454,-500.0,0.00010506,2]
[397160239,1765153853463,-500.0,0.00010506,2]
[397160241,1765153853472,-500.31913321,0.00010506,2]
[397160243,1765153853482,-500.0,0.00010506,2]
[397160244,1765153853491,-500.0,0.00010506,2]
[397160246,1765153853501,-2102.11,0.00010506,2]
[397160248,1765153853511,-503.69,0.00010506,2]
[397160250,1765153853520,-500.0,0.00010506,2]
[397160252,1765153853530,-500.0,0.00010506,2]
[397160254,1765153853540,-500.0,0.00010506,2]
[397160256,1765153853550,-500.0,0.00010506,2]
[397160258,1765153853559,-500.0,0.00010506,2]
[397160260,1765153853569,-500.22951575,0.00010506,2]
[397160262,1765153853579,-5000.0,0.00010506,2]
[397160264,1765153853588,-4714.72,0.00010506,2]
[397160266,1765153853598,-500.0,0.00010506,2]
[397160268,1765153853607,-500.0,0.00010506,2]
[397160270,1765153853619,-500.0,0.00010506,2]
[397160272,1765153853628,-4428.94,0.00010506,2]
[397160273,1765153853638,-659.83,0.00010506,2]
[397160275,1765153853648,-500.0,0.00010506,2]
[397160277,1765153853657,-1417.3,0.00010506,2]
[397160279,1765153853666,-500.4619935,0.00010506,2]
[397160281,1765153853676,-720.28,0.00010506,2]
[397160283,1765153853686,-500.0,0.00010506,2]
[397160285,1765153853697,-2801.00078314,0.00010555,2]
[397160287,1765153853706,-955.37,0.00010604,2]
[397160289,1765153853716,-500.0,0.00010604,2]
[397160291,1765153853725,-500.0,0.00010604,2]
[397160293,1765153853734,-2318.67,0.00010604,2]
[397160295,1765153853744,-1579.21,0.00010604,2]
[397160297,1765153853753,-5510.06,0.00010604,2]
[397160299,1765153853762,-500.0,0.00010606,2]
[397160301,1765153853772,-500.0,0.00010606,2]
[397160303,1765153853782,-500.0,0.00010606,2]
[397160305,1765153853792,-500.0,0.00010606,2]
[397160307,1765153853801,-500.0,0.00010606,2]
[397160309,1765153853810,-1509.41,0.00010606,2]
[397160311,1765153853820,-652.77,0.00010606,2]
[397160313,1765153853829,-500.0,0.00010606,2]
[397160315,1765153853838,-593.15,0.00010606,2]
[397160317,1765153853847,-563.38,0.00010606,2]
[397160318,1765153853856,-500.0,0.00010606,2]
[397160321,1765153853868,-501.92104645,0.00010606,2]
[397160322,1765153853878,-1120.9,0.00010606,2]
[397160324,1765153853888,-1093.34,0.00010606,2]
[397160326,1765153853897,-1578.16,0.00010606,2]
[397160328,1765153853907,-1583.51,0.00010606,2]
[397160330,1765153853917,-601.92,0.00010606,2]
[397160332,1765153853927,-500.0,0.00010606,2]
[397160334,1765153853938,-500.0,0.00010606,2]
[397160336,1765153853947,-2999.73,0.00010606,2]
[397160337,1765153853957,-500.7895461,0.00010606,2]
[397160338,1765153853966,-2152.5,0.00010606,2]
[397160339,1765153853976,-500.0,0.00010606,2]
[397160340,1765153853986,-500.0,0.00010606,2]
[397160341,1765153853995,-704.56,0.00010606,2]
[397160342,1765153854004,-500.4864326,0.00010606,2]
[397160343,1765153854013,-500.0,0.00010606,2]
[397160344,1765153854022,-1209.59,0.00010606,2]
[397160345,1765153854031,-500.37004669,0.00010606,2]
[397160346,1765153854040,-500.0,0.00010606,2]
[397160347,1765153854050,-500.0,0.00010606,2]
[397160348,1765153854059,-500.0,0.00010606,2]
[397160349,1765153854068,-500.84161259,0.00010606,2]
[397160350,1765153854077,-976.62,0.00010606,2]
[397160351,1765153854087,-538.88,0.00010606,2]
[397160352,1765153854096,-459.35199807,0.00010606,2]
[397160353,1765153854106,-727.2,0.00010606,2]
[397160354,1765153854115,-829.04,0.00010606,2]